fUSD/lending_fUSD_20260613
["ID","MTS","AMOUNT","RATE_DAILY","PERIOD"]
[424956079,1781349065000,-144080.89464708,6.865e-05,2]
[424956083,1781349065000,-665.72995843,6.865e-05,2]
[424956078,1781349065000,-394.68030262,6.865e-05,2]
[424956081,1781349065000,-2108.94415124,6.865e-05,2]
[424956080,1781349065000,-23527.98638052,6.865e-05,2]
[424956084,1781349065000,-478.44776417,6.865e-05,2]
[424956082,1781349065000,-280.0,6.865e-05,2]
[424956088,1781349066000,-943.00436812,6.865e-05,2]
[424956089,1781349067000,-974.6604782,6.865e-05,2]
[424956091,1781349067000,-57424.21104701,6.913e-05,2]
[424956090,1781349067000,-9862.2637114,6.865e-05,2]
[424956092,1781349067000,-216.029201,6.913e-05,2]
[424956094,1781349067000,-255.0,7.55e-05,2]
[424956093,1781349067000,-160.0,6.915e-05,2]
[424956095,1781349067000,-20232.672201,7.945e-05,2]
[424956100,1781349067000,-162.13261455,8.94e-05,2]
[424956099,1781349067000,-162.13261455,8.94e-05,2]
[424956097,1781349067000,-33283.9248,8.94e-05,2]
[424956098,1781349067000,-2500.0,8.94e-05,2]
[424956096,1781349067000,-313.0,8.305e-05,2]
[424956106,1781349067000,-1359.0,9.416e-05,2]
[424956103,1781349067000,-10948.39,9.051e-05,2]
[424956101,1781349067000,-162.13261455,8.94e-05,2]
[424956117,1781349068000,-8879.34657732,9.416e-05,2]
[424956118,1781349068000,-3969.05115253,9.416e-05,2]
[424956123,1781349069000,-2302.41111024,9.485e-05,2]
[424956122,1781349069000,-419.0,9.485e-05,2]
[424956121,1781349069000,-3440.66,9.416e-05,2]
[424956124,1781349069000,-584.65361861,9.485e-05,2]
[424956119,1781349069000,-2492.62035174,9.416e-05,2]
[424956120,1781349069000,-43133.50936725,9.416e-05,2]
[424956125,1781349070000,216.029201,6.915e-05,2]
[424956128,1781349125000,576.51912403,6.864e-05,2]
[424956130,1781349134000,500.0,6.864e-05,2]
[424956131,1781349134000,179.03167497,6.864e-05,2]
[424956129,1781349134000,500.0,6.864e-05,2]
[424956132,1781349155000,-2737.0,6.765e-05,2]
[424956140,1781349252000,-500.0,6.764e-05,2]
[424956134,1781349252000,-500.0,6.764e-05,2]
[424956135,1781349252000,-218.8957065,6.764e-05,2]
[424956136,1781349252000,-188.82406684,6.764e-05,2]
[424956138,1781349252000,-500.0,6.764e-05,2]
[424956139,1781349252000,-500.0,6.764e-05,2]
[424956141,1781349252000,-500.0,6.764e-05,2]
[424956142,1781349252000,-219.10623822,6.764e-05,2]
[424956137,1781349252000,-203.5485834,6.764e-05,2]
[424956145,1781349252000,-500.0,6.764e-05,2]
[424956149,1781349252000,-500.0,6.764e-05,2]
[424956150,1781349252000,-500.0,6.764e-05,2]
[424956151,1781349252000,-500.0,6.764e-05,2]
[424956152,1781349252000,-427.62540504,6.764e-05,2]
[424956148,1781349252000,-500.0,6.764e-05,2]
[424956146,1781349252000,-500.0,6.764e-05,2]
[424956144,1781349252000,-500.0,6.764e-05,2]
[424956147,1781349252000,-500.0,6.764e-05,2]
[424956143,1781349252000,-500.0,6.764e-05,2]
[424956159,1781349664000,-386.28025903,6.762e-05,2]
[424956161,1781349718000,-113.71974097,6.762e-05,2]
[424956162,1781349771000,-310.27197166,6.762e-05,2]
[424956164,1781349958000,-244.10433891,6.76e-05,2]
[424956163,1781349958000,-300.0,6.759e-05,2]
[424956165,1781349992000,-255.89566109,6.76e-05,2]
[424956166,1781350045000,-500.0,6.759e-05,2]
[424956167,1781350099000,-500.0,6.759e-05,2]
[424956168,1781350152000,-377.6822,6.665e-05,2]
[424956181,1781350153000,-3187.50615817,6.831e-05,2]
[424956180,1781350153000,-150.99,6.831e-05,2]
[424956178,1781350153000,-216.029201,6.792e-05,2]
[424956179,1781350153000,-160.0,6.795e-05,2]
[424956177,1781350153000,-150.0,6.764e-05,2]
[424956176,1781350153000,-492.48400838,6.764e-05,2]
[424956175,1781350153000,-153.22699455,6.764e-05,2]
[424956174,1781350153000,-231.02719717,6.763e-05,2]
[424956173,1781350153000,-500.0,6.763e-05,2]
[424956172,1781350153000,-500.0,6.763e-05,2]
[424956171,1781350153000,-500.0,6.763e-05,2]
[424956170,1781350153000,-198.52527389,6.762e-05,2]
[424956169,1781350153000,-352.11187679,6.761e-05,2]
[424956182,1781350153000,-4081.63262841,6.831e-05,2]
[424956183,1781350154000,-216.029201,6.794e-05,2]
[424956184,1781350154000,-2974.16060019,6.831e-05,2]
[424956187,1781350154000,-983.22076468,6.831e-05,2]
[424956186,1781350154000,-2958.07918796,6.831e-05,2]
[424956185,1781350154000,-232.11061323,6.831e-05,2]
[424956188,1781350156000,-313.85617902,6.831e-05,2]
[424956189,1781350161000,-624.89998659,6.831e-05,2]
[424956191,1781350170000,-208.36611825,6.898e-05,2]
[424956190,1781350170000,-119.93388175,6.831e-05,2]
[424956192,1781350176000,-791.62388175,6.898e-05,2]
[424956195,1781350177000,-199.99610088,6.898e-05,2]
[424956194,1781350177000,-3337.46180853,6.898e-05,2]
[424956193,1781350177000,-2545.83792678,6.898e-05,2]
[424956197,1781350205000,-515.72416381,6.898e-05,2]
[424956199,1781350206000,-394.25461245,6.965e-05,2]
[424956198,1781350206000,-2492.62,6.898e-05,2]
[424956201,1781350206000,-288.09559044,6.966e-05,2]
[424956202,1781350206000,-3465.72440956,6.966e-05,2]
[424956200,1781350206000,-299.99,6.966e-05,2]
[424956218,1781350231000,-1715.14287,8.178e-05,2]
[424956219,1781350231000,-150.99,8.178e-05,2]
[424956217,1781350231000,-7284.9408064,7.82e-05,2]
[424956215,1781350231000,-751.39039257,7.82e-05,2]
[424956216,1781350231000,-20720.32824373,7.82e-05,2]
[424956212,1781350231000,-399.3684,7.62e-05,2]
[424956214,1781350231000,-13143.614231,7.82e-05,2]
[424956209,1781350231000,-250.0,7.435e-05,2]
[424956210,1781350231000,-250.0,7.436e-05,2]
[424956207,1781350231000,-501.0100713,6.763e-05,2]
[424956208,1781350231000,-193.0,7.435e-05,2]
[424956221,1781350231000,-1492.59,8.178e-05,2]
[424956211,1781350231000,-250.0,7.588e-05,2]
[424956223,1781350231000,-7474.31,8.391e-05,2]
[424956213,1781350231000,-266.8772977,7.819e-05,2]
[424956220,1781350231000,-9999.99,8.178e-05,2]
[424956234,1781350231000,-1296.92153034,8.587e-05,2]
[424956236,1781350231000,-98.82961711,8.595e-05,2]
[424956237,1781350231000,-430.67,8.595e-05,2]
[424956224,1781350231000,-1562.11,8.391e-05,2]
[424956235,1781350231000,-1155.58846966,8.587e-05,2]
[424956232,1781350231000,-279.85746921,8.564e-05,2]
[424956231,1781350231000,-200.0,8.554e-05,2]
[424956233,1781350231000,-8372.15,8.573e-05,2]
[424956228,1781350231000,-1000.0,8.462e-05,2]
[424956229,1781350231000,-8958.97,8.474e-05,2]
[424956227,1781350231000,-1460.79,8.425e-05,2]
[424956225,1781350231000,-299.99,8.391e-05,2]
[424956226,1781350231000,-5987.1,8.425e-05,2]
[424956222,1781350231000,-166.44,8.219e-05,2]
[424956230,1781350231000,-594.31,8.541e-05,2]
[424956269,1781350239000,-1470.50038289,8.595e-05,2]
[424956262,1781350239000,-192.33635524,7.819e-05,2]
[424956263,1781350239000,-500.0,8.219e-05,2]
[424956264,1781350239000,-500.0,8.219e-05,2]
[424956267,1781350239000,-500.0,8.219e-05,2]
[424956265,1781350239000,-500.0,8.219e-05,2]
[424956268,1781350239000,-500.0,8.219e-05,2]
[424956261,1781350239000,-344.73880587,7.819e-05,2]
[424956271,1781350239000,-500.0,8.849e-05,2]
[424956270,1781350239000,-268.05,8.716e-05,2]
[424956273,1781350239000,-166.44,9.247e-05,2]
[424956272,1781350239000,-154.09,9.222e-05,2]
[424956276,1781350239000,-3575.86840596,9.479e-05,2]
[424956274,1781350239000,-2500.0,9.459e-05,2]
[424956275,1781350239000,-1460.79,9.478e-05,2]
[424956266,1781350239000,-500.0,8.219e-05,2]
[424956277,1781350239000,-1196.69,9.479e-05,2]
[424956416,1781350241000,-0.53625204,9.479e-05,2]
[424956415,1781350241000,-731.42,9.479e-05,2]
[424956414,1781350241000,-254.35801595,9.479e-05,2]
[424956422,1781350242000,-248.42268292,9.479e-05,2]
[424956421,1781350242000,-183.88324328,9.479e-05,2]
[424956420,1781350242000,-317.12732605,9.479e-05,2]
[424956453,1781350243000,-305.22,9.749e-05,2]
[424956455,1781350243000,-305.22,9.764e-05,2]
[424956452,1781350243000,-1072.83229984,9.744e-05,2]
[424956454,1781350243000,-487.94,9.756e-05,2]
[424956451,1781350243000,-1168.75414018,9.744e-05,2]
[424956457,1781350243000,-487.96,9.782e-05,2]
[424956458,1781350243000,-487.94,9.791e-05,2]
[424956456,1781350243000,-305.22,9.779e-05,2]
[424956459,1781350243000,-305.22,9.793e-05,2]
[424956460,1781350243000,-305.22,9.807e-05,2]
[424956461,1781350243000,-305.22,9.821e-05,2]
[424956465,1781350243000,-487.94,9.856e-05,2]
[424956463,1781350243000,-305.22,9.835e-05,2]
[424956464,1781350243000,-305.22,9.848e-05,2]
[424956470,1781350243000,-487.96,9.896e-05,2]
[424956469,1781350243000,-305.22,9.887e-05,2]
[424956473,1781350243000,-487.94,9.916e-05,2]
[424956467,1781350243000,-305.22,9.874e-05,2]
[424956468,1781350243000,-487.94,9.886e-05,2]
[424956466,1781350243000,-305.22,9.861e-05,2]
[424956472,1781350243000,-305.22,9.912e-05,2]
[424956474,1781350243000,-305.22,9.924e-05,2]
[424956449,1781350243000,-487.94,9.72e-05,2]
[424956462,1781350243000,-487.94,9.824e-05,2]
[424956447,1781350243000,-305.22,9.702e-05,2]
[424956431,1781350243000,-150.0,9.56e-05,2]
[424956448,1781350243000,-305.22,9.718e-05,2]
[424956471,1781350243000,-305.22,9.899e-05,2]
[424956423,1781350243000,-3211.6940738,9.479e-05,2]
[424956425,1781350243000,-500.0,9.559e-05,2]
[424956426,1781350243000,-150.0,9.56e-05,2]
[424956424,1781350243000,-396.13,9.521e-05,2]
[424956427,1781350243000,-150.0,9.56e-05,2]
[424956429,1781350243000,-150.0,9.56e-05,2]
[424956428,1781350243000,-170.0,9.56e-05,2]
[424956430,1781350243000,-150.0,9.56e-05,2]
[424956432,1781350243000,-305.22,9.596e-05,2]
[424956434,1781350243000,-305.22,9.615e-05,2]
[424956450,1781350243000,-305.22,9.734e-05,2]
[424956433,1781350243000,-487.94,9.596e-05,2]
[424956435,1781350243000,-305.22,9.633e-05,2]
[424956437,1781350243000,-487.96,9.647e-05,2]
[424956438,1781350243000,-305.22,9.651e-05,2]
[424956440,1781350243000,-1275.0,9.668e-05,2]
[424956439,1781350243000,-482.2,9.659e-05,2]
[424956441,1781350243000,-383.0,9.668e-05,2]
[424956443,1781350243000,-305.22,9.669e-05,2]
[424956442,1781350243000,-1228.0,9.668e-05,2]
[424956444,1781350243000,-2000.0,9.669e-05,2]
[424956445,1781350243000,-487.94,9.681e-05,2]
[424956446,1781350243000,-305.22,9.686e-05,2]
[424956436,1781350243000,-487.94,9.64e-05,2]
[424956476,1781350243000,-487.94,9.944e-05,2]
[424956501,1781350243000,-1000.0,0.0001,2]
[424956478,1781350243000,-305.22,9.96e-05,2]
[424956504,1781350243000,-4000.0,0.00010027,2]
[424956510,1781350243000,-350.0,0.00010112,2]
[424956511,1781350243000,-2674.14,0.00010136,2]
[424956509,1781350243000,-2000.0,0.0001011,2]
[424956513,1781350243000,-266.8772977,0.00010209,2]
[424956515,1781350243000,-7284.9408064,0.0001021,2]
[424956518,1781350243000,-166.44,0.00010274,2]
[424956517,1781350243000,-1000.0,0.0001027,2]
[424956514,1781350243000,-34615.3328673,0.0001021,2]
[424956520,1781350243000,-18827.19000966,0.000103,2]
[424956519,1781350243000,-4000.0,0.00010278,2]
[424956505,1781350243000,-327.23,0.00010051,2]
[424956516,1781350243000,-500.0,0.0001027,2]
[424956522,1781350243000,-185.11,0.00010342,2]
[424956523,1781350243000,-313.48189413,0.00010357,2]
[424956521,1781350243000,-531.0,0.000103,5]
[424956524,1781350243000,-385.36,0.00010378,2]
[424956526,1781350243000,-206.20125,0.0001044,2]
[424956525,1781350243000,-165.3,0.00010378,2]
[424956528,1781350243000,-206.20125,0.0001044,2]
[424956527,1781350243000,-206.20126,0.0001044,2]
[424956530,1781350243000,-206.20126,0.0001044,2]
[424956531,1781350243000,-206.20125,0.0001044,2]
[424956475,1781350243000,-305.22,9.936e-05,2]
[424956512,1781350243000,-217.51,0.00010136,2]
[424956507,1781350243000,-9164.7005299,0.00010108,2]
[424956508,1781350243000,-19426.8822,0.0001011,2]
[424956490,1781350243000,-1158.2585461,0.0001,2]
[424956479,1781350243000,-305.22,9.971e-05,2]
[424956482,1781350243000,-274.29665736,9.988e-05,2]
[424956483,1781350243000,-487.98,9.988e-05,2]
[424956481,1781350243000,-305.22,9.983e-05,2]
[424956486,1781350243000,-305.22,9.994e-05,2]
[424956485,1781350243000,-487.98,9.99e-05,2]
[424956487,1781350243000,-487.96,9.997e-05,2]
[424956489,1781350243000,-854.87,0.0001,2]
[424956488,1781350243000,-487.94,9.999e-05,2]
[424956506,1781350243000,-263.19842322,0.000101,2]
[424956493,1781350243000,-1000.0,0.0001,2]
[424956492,1781350243000,-1000.0,0.0001,2]
[424956494,1781350243000,-1000.0,0.0001,2]
[424956495,1781350243000,-1000.0,0.0001,2]
[424956491,1781350243000,-2770.96725658,0.0001,2]
[424956497,1781350243000,-1000.0,0.0001,2]
[424956496,1781350243000,-1000.0,0.0001,2]
[424956498,1781350243000,-1000.0,0.0001,2]
[424956499,1781350243000,-1000.0,0.0001,2]
[424956500,1781350243000,-1000.0,0.0001,2]
[424956529,1781350243000,-206.20125,0.0001044,2]
[424956502,1781350243000,-163.67,0.0001,2]
[424956503,1781350243000,-305.22,0.00010005,2]
[424956480,1781350243000,-487.94,9.972e-05,2]
[424956477,1781350243000,-305.22,9.948e-05,2]
[424956534,1781350244000,-1000.0,0.0001047,2]
[424956532,1781350244000,-482.25,0.00010463,2]
[424956533,1781350244000,-500.0,0.0001047,2]
[424956535,1781350244000,-1460.79,0.00010531,2]
[424956539,1781350244000,-151.0,0.00010544,2]
[424956538,1781350244000,-200.0,0.00010544,2]
[424956540,1781350244000,-226.65659514,0.00010544,2]
[424956536,1781350244000,-501.83956658,0.0001054,2]
[424956537,1781350244000,-200.0,0.00010544,2]
[424956541,1781350244000,-10898.89005041,0.00010544,2]
[424956543,1781350246000,-60.45603766,8.219e-05,2]
[424956545,1781350246000,-229.51290328,8.219e-05,2]
[424956548,1781350246000,-574.4,9.722e-05,2]
[424956547,1781350246000,-574.4,9.668e-05,2]
[424956544,1781350246000,-439.54396234,8.219e-05,2]
[424956550,1781350246000,-200.26825444,9.819e-05,2]
[424956551,1781350246000,-889.51990694,9.642e-05,2]
[424956553,1781350246000,-374.13174556,9.819e-05,2]
[424956552,1781350246000,-73.95209306,9.642e-05,2]
[424956554,1781350246000,-493.20678302,9.863e-05,2]
[424956549,1781350246000,-574.4,9.772e-05,2]
[424956546,1781350246000,-574.4,9.61e-05,2]
[424956556,1781350374000,-1528.443,6.665e-05,2]
[424956557,1781350397000,-1528.443,6.665e-05,2]
[424956558,1781350422000,-322.02026146,6.664e-05,2]
[424956565,1781350472000,-150.0,6.664e-05,2]
[424956569,1781350525000,-176.57283503,6.632e-05,2]
[424956570,1781350579000,-312.52675616,6.664e-05,2]
[424956571,1781350632000,-456.02193885,6.664e-05,2]
[424956573,1781350634000,-49700.0,6.665e-05,2]
[424956572,1781350634000,-300.0,6.664e-05,2]
[424956574,1781350685000,-469.2153572,6.663e-05,2]
[424956575,1781350739000,-500.0,6.663e-05,2]
[424956576,1781350792000,-150.0,6.662e-05,2]
[424956577,1781350967000,-328.45075004,6.662e-05,2]
[424956582,1781351021000,-409.4515932,6.663e-05,2]
[424956581,1781351021000,-500.0,6.663e-05,2]
[424956580,1781351021000,-252.90243047,6.662e-05,2]
[424956579,1781351021000,-177.06733235,6.662e-05,2]
[424956598,1781351022000,-500.0,6.663e-05,2]
[424956599,1781351022000,-500.0,6.663e-05,2]
[424956597,1781351022000,-500.0,6.663e-05,2]
[424956596,1781351022000,-500.0,6.663e-05,2]
[424956594,1781351022000,-500.0,6.663e-05,2]
[424956595,1781351022000,-500.0,6.663e-05,2]
[424956593,1781351022000,-500.0,6.663e-05,2]
[424956590,1781351022000,-500.0,6.663e-05,2]
[424956589,1781351022000,-500.0,6.663e-05,2]
[424956592,1781351022000,-500.0,6.663e-05,2]
[424956586,1781351022000,-500.0,6.663e-05,2]
[424956587,1781351022000,-221.09841546,6.663e-05,2]
[424956588,1781351022000,-500.0,6.663e-05,2]
[424956584,1781351022000,-500.0,6.663e-05,2]
[424956600,1781351022000,-500.0,6.663e-05,2]
[424956583,1781351022000,-500.0,6.663e-05,2]
[424956591,1781351022000,-500.0,6.663e-05,2]
[424956601,1781351022000,-500.0,6.663e-05,2]
[424956585,1781351022000,-500.0,6.663e-05,2]
[424956603,1781351022000,-500.0,6.663e-05,2]
[424956602,1781351022000,-500.0,6.663e-05,2]
[424956621,1781351022000,-500.0,6.663e-05,2]
[424956619,1781351022000,-500.0,6.663e-05,2]
[424956620,1781351022000,-412.79399184,6.663e-05,2]
[424956618,1781351022000,-500.0,6.663e-05,2]
[424956617,1781351022000,-500.0,6.663e-05,2]
[424956613,1781351022000,-500.0,6.663e-05,2]
[424956615,1781351022000,-500.0,6.663e-05,2]
[424956614,1781351022000,-500.0,6.663e-05,2]
[424956616,1781351022000,-500.0,6.663e-05,2]
[424956611,1781351022000,-500.0,6.663e-05,2]
[424956612,1781351022000,-500.0,6.663e-05,2]
[424956610,1781351022000,-500.0,6.663e-05,2]
[424956606,1781351022000,-500.0,6.663e-05,2]
[424956608,1781351022000,-500.0,6.663e-05,2]
[424956607,1781351022000,-500.0,6.663e-05,2]
[424956605,1781351022000,-500.0,6.663e-05,2]
[424956604,1781351022000,-500.0,6.663e-05,2]
[424956609,1781351022000,-500.0,6.663e-05,2]
[424956622,1781351023000,-2703.75356903,6.665e-05,2]
[424956625,1781351026000,-500.0,6.798e-05,2]
[424956623,1781351026000,-15961.91013097,6.665e-05,2]
[424956624,1781351026000,-216.029201,6.687e-05,2]
[424956629,1781351083000,-317.0,8.219e-05,2]
[424956627,1781351083000,-311.0,8.219e-05,2]
[424956628,1781351083000,-312.0,8.219e-05,2]
[424956626,1781351083000,-320.0,8.219e-05,2]
[424956631,1781351083000,-317.0,8.219e-05,2]
[424956630,1781351083000,-311.0,8.219e-05,2]
[424956632,1781351083000,-310.0,8.219e-05,2]
[424956633,1781351083000,-316.0,8.219e-05,2]
[424956634,1781351084000,-3808.06066803,8.219e-05,2]
[424956636,1781351149000,-216.029201,6.565e-05,2]
[424956635,1781351149000,-19763.3323,6.565e-05,2]
[424956637,1781351163000,150.0,6.5e-05,2]
[424956639,1781351243000,-152.98,6.872e-05,2]
[424956640,1781351243000,-92.30658156,8.178e-05,2]
[424956641,1781351251000,3947.0844718,6.794e-05,2]
[424956642,1781351294000,23881.1611356,6.794e-05,2]
[424956654,1781351372000,-312.0,8.191e-05,2]
[424956659,1781351372000,-311.0,8.197e-05,2]
[424956657,1781351372000,-316.0,8.194e-05,2]
[424956653,1781351372000,-313.0,8.191e-05,2]
[424956658,1781351372000,-316.0,8.194e-05,2]
[424956655,1781351372000,-318.0,8.192e-05,2]
[424956656,1781351372000,-314.0,8.194e-05,2]
[424956652,1781351372000,-318.0,8.19e-05,2]
[424956646,1781351372000,-309.0,8.187e-05,2]
[424956651,1781351372000,-317.0,8.189e-05,2]
[424956649,1781351372000,-314.0,8.189e-05,2]
[424956647,1781351372000,-313.0,8.187e-05,2]
[424956648,1781351372000,-309.0,8.187e-05,2]
[424956644,1781351372000,-312.0,8.185e-05,2]
[424956645,1781351372000,-315.0,8.187e-05,2]
[424956643,1781351372000,-84.26625347,8.178e-05,2]
[424956660,1781351372000,-318.0,8.197e-05,2]
[424956650,1781351372000,-319.0,8.189e-05,2]
[424956661,1781351372000,-310.0,8.201e-05,2]
[424956676,1781351372000,-314.0,8.212e-05,2]
[424956663,1781351372000,-319.0,8.201e-05,2]
[424956682,1781351372000,-319.0,8.218e-05,2]
[424956681,1781351372000,-312.0,8.218e-05,2]
[424956680,1781351372000,-150.0,8.218e-05,2]
[424956679,1781351372000,-229.91552502,8.217e-05,2]
[424956662,1781351372000,-314.0,8.201e-05,2]
[424956678,1781351372000,-177.03170133,8.217e-05,2]
[424956672,1781351372000,-310.0,8.206e-05,2]
[424956673,1781351372000,-320.0,8.206e-05,2]
[424956674,1781351372000,-216.029201,8.208e-05,2]
[424956677,1781351372000,-311.0,8.212e-05,2]
[424956671,1781351372000,-313.0,8.206e-05,2]
[424956670,1781351372000,-564.55519139,8.205e-05,2]
[424956669,1781351372000,-264.92317606,8.205e-05,2]
[424956667,1781351372000,-500.0,8.205e-05,2]
[424956668,1781351372000,-500.0,8.205e-05,2]
[424956666,1781351372000,-500.0,8.205e-05,2]
[424956665,1781351372000,-500.0,8.205e-05,2]
[424956664,1781351372000,-316.0,8.202e-05,2]
[424956675,1781351372000,-312.0,8.212e-05,2]
[424956692,1781351373000,-319.0,8.219e-05,2]
[424956691,1781351373000,-313.0,8.219e-05,2]
[424956690,1781351373000,-309.0,8.218e-05,2]
[424956689,1781351373000,-309.0,8.218e-05,2]
[424956687,1781351373000,-310.0,8.218e-05,2]
[424956684,1781351373000,-315.0,8.218e-05,2]
[424956686,1781351373000,-321.0,8.218e-05,2]
[424956685,1781351373000,-316.0,8.218e-05,2]
[424956683,1781351373000,-314.0,8.218e-05,2]
[424956694,1781351373000,-299.99,8.219e-05,2]
[424956688,1781351373000,-314.0,8.218e-05,2]
[424956693,1781351373000,-6191.92933197,8.219e-05,2]
[424956695,1781351373000,-500.0,8.219e-05,2]
[424956698,1781351373000,-312.85580663,8.219e-05,2]
[424956696,1781351373000,-500.0,8.219e-05,2]
[424956708,1781351373000,-330.95934294,8.257e-05,2]
[424956707,1781351373000,-300.0,8.257e-05,2]
[424956705,1781351373000,-300.0,8.257e-05,2]
[424956703,1781351373000,-500.0,8.219e-05,2]
[424956704,1781351373000,-176.57283503,8.233e-05,2]
[424956706,1781351373000,-300.0,8.257e-05,2]
[424956701,1781351373000,-500.0,8.219e-05,2]
[424956700,1781351373000,-500.0,8.219e-05,2]
[424956699,1781351373000,-500.0,8.219e-05,2]
[424956697,1781351373000,-500.0,8.219e-05,2]
[424956709,1781351373000,-1316.10882945,8.275e-05,2]
[424956702,1781351373000,-150.99,8.219e-05,2]
[424956721,1781351427000,-500.0,8.205e-05,2]
[424956714,1781351427000,-320.0,8.186e-05,2]
[424956716,1781351427000,-312.0,8.192e-05,2]
[424956715,1781351427000,-318.0,8.192e-05,2]
[424956718,1781351427000,-313.0,8.192e-05,2]
[424956717,1781351427000,-318.0,8.192e-05,2]
[424956719,1781351427000,-250.0,8.194e-05,2]
[424956720,1781351427000,-150.0,8.202e-05,2]
[424956722,1781351427000,-500.0,8.205e-05,2]
[424956713,1781351427000,-319.0,8.185e-05,2]
[424956725,1781351427000,-319.0,8.219e-05,2]
[424956723,1781351427000,-311.73077374,8.205e-05,2]
[424956726,1781351427000,-313.0,8.219e-05,2]
[424956727,1781351427000,-318.0,8.219e-05,2]
[424956729,1781351427000,-300.0,8.232e-05,2]
[424956728,1781351427000,-250.0,8.223e-05,2]
[424956731,1781351427000,-300.0,8.232e-05,2]
[424956730,1781351427000,-300.0,8.232e-05,2]
[424956732,1781351427000,-300.0,8.232e-05,2]
[424956733,1781351427000,-10090.26922626,8.275e-05,2]
[424956724,1781351427000,-500.0,8.205e-05,2]
[424956735,1781351431000,-1173.0069833,8.275e-05,2]
[424956737,1781351431000,-6036.78747,8.275e-05,2]
[424956736,1781351431000,-15199.54564638,8.275e-05,2]
[424956739,1781351431000,-5896.621924,8.275e-05,2]
[424956740,1781351431000,-7012.96532061,8.275e-05,2]
[424956738,1781351431000,-300.0,8.275e-05,2]
[424956788,1781351432000,-310.54,9.601e-05,2]
[424956773,1781351432000,-317.0,9.479e-05,2]
[424956790,1781351432000,-305.02,9.613e-05,2]
[424956784,1781351432000,-319.0,9.479e-05,2]
[424956779,1781351432000,-313.0,9.479e-05,2]
[424956803,1781351432000,-305.02,9.731e-05,2]
[424956783,1781351432000,-317.0,9.479e-05,2]
[424956785,1781351432000,-500.0,9.479e-05,2]
[424956775,1781351432000,-319.0,9.479e-05,2]
[424956781,1781351432000,-320.0,9.479e-05,2]
[424956786,1781351432000,-3947.0844718,9.526e-05,2]
[424956789,1781351432000,-4678.65,9.609e-05,2]
[424956798,1781351432000,-310.54,9.687e-05,2]
[424956791,1781351432000,-310.54,9.631e-05,2]
[424956792,1781351432000,-305.02,9.638e-05,2]
[424956795,1781351432000,-310.54,9.659e-05,2]
[424956802,1781351432000,-5579.15,9.721e-05,2]
[424956794,1781351432000,-4678.65,9.658e-05,2]
[424956793,1781351432000,-14136.02,9.656e-05,2]
[424956801,1781351432000,-310.54,9.713e-05,2]
[424956800,1781351432000,-305.02,9.709e-05,2]
[424956796,1781351432000,-305.02,9.663e-05,2]
[424956797,1781351432000,-305.02,9.686e-05,2]
[424956799,1781351432000,-4678.65,9.704e-05,2]
[424956777,1781351432000,-314.0,9.479e-05,2]
[424956787,1781351432000,-23881.1611356,9.526e-05,2]
[424956771,1781351432000,-5076.34,9.294e-05,2]
[424956749,1781351432000,-150.0,8.445e-05,2]
[424956767,1781351432000,-350.27,9.124e-05,2]
[424956805,1781351432000,-310.54,9.738e-05,2]
[424956745,1781351432000,-683.27,8.328e-05,2]
[424956747,1781351432000,-150.0,8.363e-05,2]
[424956746,1781351432000,-176.57283503,8.333e-05,2]
[424956748,1781351432000,-236.05,8.363e-05,2]
[424956741,1781351432000,-317.0,8.275e-05,2]
[424956743,1781351432000,-309.0,8.275e-05,2]
[424956742,1781351432000,-319.0,8.275e-05,2]
[424956744,1781351432000,-150.0,8.281e-05,2]
[424956751,1781351432000,-1852.42,8.525e-05,2]
[424956750,1781351432000,-2993.55,8.485e-05,2]
[424956753,1781351432000,-298.0,8.609e-05,2]
[424956752,1781351432000,-150.0,8.527e-05,2]
[424956759,1781351432000,-155.18,8.84e-05,2]
[424956757,1781351432000,-24520.04,8.765e-05,2]
[424956754,1781351432000,-2369.08,8.649e-05,2]
[424956755,1781351432000,-6177.34,8.649e-05,2]
[424956756,1781351432000,-2000.0,8.729e-05,2]
[424956758,1781351432000,-742.82,8.822e-05,2]